[Event "Titled Tuesday Blitz August 1 Late 2023"]
[White "Francisco_Ferrari"]
[Black "feuervogel1000000"]
[WhiteElo "2217"]
[BlackElo "2521"]
[Result "1-0"]
[Round "1"]
[TimeControl "180+1"]
[Date "2023.08.01"]
[WhiteClock "0:00:10"]
[BlackClock "0:01:03"]
[Board "165"]

1. e4 {[%clk 0:02:56]}  c5 {[%clk 0:02:59]} 2. Nf3 {[%clk 0:02:56]}  d6 {[%clk 0:02:58]} 3. d4 {[%clk 0:02:54]}  cxd4 {[%clk 0:02:59]} 4. Nxd4 {[%clk 0:02:55]}  Nf6 {[%clk 0:03:00]} 5. Nc3 {[%clk 0:02:55]}  a6 {[%clk 0:02:58]} 6. h3 {[%clk 0:02:56]}  e5 {[%clk 0:02:58]} 7. Nde2 {[%clk 0:02:56]}  h5 {[%clk 0:02:55]} 8. Bg5 {[%clk 0:02:50]}  Be6 {[%clk 0:02:49]} 9. Bxf6 {[%clk 0:02:45]}  Qxf6 {[%clk 0:02:48]} 10. Nd5 {[%clk 0:02:46]}  Qd8 {[%clk 0:02:47]} 11. Nec3 {[%clk 0:02:44]}  Nd7 {[%clk 0:02:44]} 12. Qd2 {[%clk 0:02:21]}  b5 {[%clk 0:02:41]} 13. a4 {[%clk 0:02:02]}  bxa4 {[%clk 0:02:33]} 14. Rxa4 {[%clk 0:01:59]}  Nc5 {[%clk 0:02:32]} 15. Ra1 {[%clk 0:01:58]}  g6 {[%clk 0:02:31]} 16. Bc4 {[%clk 0:01:57]}  Bh6 {[%clk 0:02:30]} 17. Qe2 {[%clk 0:01:54]}  O-O {[%clk 0:02:25]} 18. O-O {[%clk 0:01:51]}  a5 {[%clk 0:02:24]} 19. Rfd1 {[%clk 0:01:30]}  Kg7 {[%clk 0:02:19]} 20. Nb5 {[%clk 0:01:22]}  Rb8 {[%clk 0:02:13]} 21. Ndc3 {[%clk 0:01:17]}  Rb6 {[%clk 0:02:09]} 22. Rxa5 {[%clk 0:01:13]}  Qb8 {[%clk 0:02:04]} 23. b4 {[%clk 0:01:03]}  Nb7 {[%clk 0:01:59]} 24. Bxe6 {[%clk 0:00:55]}  fxe6 {[%clk 0:01:49]} 25. Ra7 {[%clk 0:00:54]}  Rf7 {[%clk 0:01:48]} 26. Qc4 {[%clk 0:00:44]}  Nd8 {[%clk 0:01:42]} 27. Rxf7+ {[%clk 0:00:40]}  Nxf7 {[%clk 0:01:42]} 28. Ra1 {[%clk 0:00:30]}  Bd2 {[%clk 0:01:37]} 29. Ra7 {[%clk 0:00:20]}  Rb7 {[%clk 0:01:36]} 30. Rxb7 {[%clk 0:00:17]}  Qxb7 {[%clk 0:01:37]} 31. Qxe6 {[%clk 0:00:17]}  Bxc3 {[%clk 0:01:37]} 32. Nxc3 {[%clk 0:00:18]}  Qxb4 {[%clk 0:01:37]} 33. Qf6+ {[%clk 0:00:16]}  Kxf6 {[%clk 0:01:35]} 34. Nd5+ {[%clk 0:00:17]}  Ke6 {[%clk 0:01:35]} 35. Nxb4 {[%clk 0:00:18]}  Ng5 {[%clk 0:01:36]} 36. f3 {[%clk 0:00:17]}  h4 {[%clk 0:01:36]} 37. Nd5 {[%clk 0:00:18]}  Nf7 {[%clk 0:01:36]} 38. Kf2 {[%clk 0:00:18]}  Nd8 {[%clk 0:01:35]} 39. Ke3 {[%clk 0:00:18]}  g5 {[%clk 0:01:34]} 40. c3 {[%clk 0:00:19]}  Nc6 {[%clk 0:01:34]} 41. Kd3 {[%clk 0:00:19]}  Na5 {[%clk 0:01:33]} 42. c4 {[%clk 0:00:19]}  Nb3 {[%clk 0:01:33]} 43. Ne3 {[%clk 0:00:18]}  Nd4 {[%clk 0:01:32]} 44. Nc2 {[%clk 0:00:18]}  Nb3 {[%clk 0:01:31]} 45. Nb4 {[%clk 0:00:18]}  Nc5+ {[%clk 0:01:31]} 46. Kc3 {[%clk 0:00:18]}  Kd7 {[%clk 0:01:31]} 47. Nd5 {[%clk 0:00:18]}  Ne6 {[%clk 0:01:32]} 48. Kb4 {[%clk 0:00:17]}  Kc6 {[%clk 0:01:32]} 49. Kc3 {[%clk 0:00:17]}  Kc5 {[%clk 0:01:32]} 50. Kd3 {[%clk 0:00:16]}  Nd4 {[%clk 0:01:27]} 51. Ne7 {[%clk 0:00:12]}  Ne6 {[%clk 0:01:23]} 52. Nf5 {[%clk 0:00:12]}  Kb4 {[%clk 0:01:22]} 53. Nxd6 {[%clk 0:00:11]}  Nf4+ {[%clk 0:01:23]} 54. Ke3 {[%clk 0:00:10]}  Nxg2+ {[%clk 0:01:23]} 55. Kf2 {[%clk 0:00:10]}  Nf4 {[%clk 0:01:24]} 56. Ke3 {[%clk 0:00:10]}  Nxh3 {[%clk 0:01:24]} 57. Nf5 {[%clk 0:00:10]}  Kxc4 {[%clk 0:01:23]} 58. Nh6 {[%clk 0:00:09]}  Nf4 {[%clk 0:01:21]} 59. Ng4 {[%clk 0:00:10]}  h3 {[%clk 0:01:20]} 60. Nxe5+ {[%clk 0:00:10]}  Kc3 {[%clk 0:01:20]} 61. Ng4 {[%clk 0:00:10]}  Kc4 {[%clk 0:01:16]} 62. Kf2 {[%clk 0:00:09]}  Kd4 {[%clk 0:01:16]} 63. Kg3 {[%clk 0:00:09]}  Kd3 {[%clk 0:01:16]} 64. Nf2+ {[%clk 0:00:09]}  Ke2 {[%clk 0:01:16]} 65. Nxh3 {[%clk 0:00:10]}  Ne6 {[%clk 0:01:15]} 66. Kg4 {[%clk 0:00:09]}  Ke3 {[%clk 0:01:14]} 67. Nxg5 {[%clk 0:00:09]}  Nf8 {[%clk 0:01:13]} 68. e5 {[%clk 0:00:09]}  Kd4 {[%clk 0:01:12]} 69. f4 {[%clk 0:00:08]}  Kd5 {[%clk 0:01:11]} 70. Kf5 {[%clk 0:00:09]}  Kc5 {[%clk 0:01:11]} 71. e6 {[%clk 0:00:09]}  Kd6 {[%clk 0:01:03]} 72. Kf6 {[%clk 0:00:10]} 1-0


[Site "https://www.chess.com"]

[Event "Titled Tuesday Blitz August 1 Late 2023"]
[White "campochess"]
[Black "Tikhonov, Viacheslav"]
[BlackFideId "44196407"]
[WhiteElo "2206"]
[BlackElo "2520"]
[Result "0-1"]
[Round "1"]
[TimeControl "180+1"]
[Date "2023.08.01"]
[WhiteClock "0:00:59"]
[BlackClock "0:00:20"]
[Board "167"]

1. d4 {[%clk 0:02:55]}  Nf6 {[%clk 0:02:59]} 2. Bg5 {[%clk 0:02:54]}  Ne4 {[%clk 0:02:58]} 3. h4 {[%clk 0:02:53]}  d5 {[%clk 0:02:54]} 4. Nd2 {[%clk 0:02:52]}  Nd6 {[%clk 0:02:41]} 5. e3 {[%clk 0:02:50]}  h6 {[%clk 0:02:35]} 6. Bf4 {[%clk 0:02:49]}  g6 {[%clk 0:02:36]} 7. Be5 {[%clk 0:02:47]}  f6 {[%clk 0:02:34]} 8. Bh2 {[%clk 0:02:45]}  Bg7 {[%clk 0:02:19]} 9. Bd3 {[%clk 0:02:44]}  f5 {[%clk 0:01:50]} 10. Ne2 {[%clk 0:02:40]}  O-O {[%clk 0:01:48]} 11. Nf4 {[%clk 0:02:38]}  Kh7 {[%clk 0:01:33]} 12. h5 {[%clk 0:02:33]}  g5 {[%clk 0:01:31]} 13. Nxd5 {[%clk 0:02:32]}  e6 {[%clk 0:01:29]} 14. Nc3 {[%clk 0:02:32]}  b6 {[%clk 0:01:24]} 15. g4 {[%clk 0:02:29]}  Bb7 {[%clk 0:01:23]} 16. Rg1 {[%clk 0:02:28]}  Kh8 {[%clk 0:01:21]} 17. gxf5 {[%clk 0:02:20]}  Nxf5 {[%clk 0:01:21]} 18. Be4 {[%clk 0:02:14]}  Bxe4 {[%clk 0:01:11]} 19. Ndxe4 {[%clk 0:02:12]}  Nh4 {[%clk 0:01:09]} 20. f4 {[%clk 0:02:09]}  Nc6 {[%clk 0:00:43]} 21. Qg4 {[%clk 0:02:06]}  Nf5 {[%clk 0:00:34]} 22. fxg5 {[%clk 0:02:00]}  Nxe3 {[%clk 0:00:35]} 23. Qe2 {[%clk 0:01:59]}  Nxd4 {[%clk 0:00:35]} 24. Qd3 {[%clk 0:01:50]}  Nexc2+ {[%clk 0:00:23]} 25. Kd2 {[%clk 0:01:40]}  Nxa1 {[%clk 0:00:21]} 26. Rxa1 {[%clk 0:01:36]}  Nf3+ {[%clk 0:00:21]} 27. Kc2 {[%clk 0:01:34]}  Qxd3+ {[%clk 0:00:21]} 28. Kxd3 {[%clk 0:01:34]}  Nxh2 {[%clk 0:00:22]} 29. gxh6 {[%clk 0:01:32]}  Bxh6 {[%clk 0:00:21]} 30. Rh1 {[%clk 0:01:26]}  Rad8+ {[%clk 0:00:22]} 31. Kc4 {[%clk 0:01:23]}  Ng4 {[%clk 0:00:21]} 32. Re1 {[%clk 0:01:19]}  Ne5+ {[%clk 0:00:20]} 33. Kb3 {[%clk 0:01:18]}  Nd3 {[%clk 0:00:21]} 34. Re2 {[%clk 0:01:10]}  Nc1+ {[%clk 0:00:20]} 35. Ka4 {[%clk 0:01:08]}  Nxe2 {[%clk 0:00:21]} 36. Nxe2 {[%clk 0:01:09]}  Rf4 {[%clk 0:00:20]} 37. Nc3 {[%clk 0:01:06]}  Rxe4+ {[%clk 0:00:19]} 38. Nxe4 {[%clk 0:00:59]}  Rd4+ {[%clk 0:00:20]} 0-1


[Site "https://www.chess.com"]

[Event "Titled Tuesday Blitz August 1 Late 2023"]
[White "Wartiovaara, Oliver"]
[Black "Osmonbekov, Talaibek"]
[WhiteFideId "513024"]
[BlackFideId "2017253"]
[WhiteElo "2517"]
[BlackElo "2189"]
[Result "1-0"]
[Round "1"]
[TimeControl "180+1"]
[Date "2023.08.01"]
[WhiteClock "0:01:15"]
[BlackClock "0:00:03"]
[Board "170"]

1. d4 {[%clk 0:02:59]}  e6 {[%clk 0:02:59]} 2. Nc3 {[%clk 0:02:58]}  Bb4 {[%clk 0:02:58]} 3. e4 {[%clk 0:02:52]}  d5 {[%clk 0:02:57]} 4. e5 {[%clk 0:02:52]}  Ne7 {[%clk 0:02:55]} 5. a3 {[%clk 0:02:48]}  Bxc3+ {[%clk 0:02:54]} 6. bxc3 {[%clk 0:02:48]}  c5 {[%clk 0:02:55]} 7. Qg4 {[%clk 0:02:47]}  O-O {[%clk 0:02:41]} 8. Bd3 {[%clk 0:02:38]}  c4 {[%clk 0:02:25]} 9. Bh6 {[%clk 0:02:37]}  Ng6 {[%clk 0:02:18]} 10. Bxg6 {[%clk 0:02:36]}  fxg6 {[%clk 0:02:16]} 11. Be3 {[%clk 0:02:36]}  Qa5 {[%clk 0:02:15]} 12. Ne2 {[%clk 0:02:36]}  Qa4 {[%clk 0:02:13]} 13. Kd2 {[%clk 0:02:25]}  Nc6 {[%clk 0:02:03]} 14. h4 {[%clk 0:02:22]}  Ne7 {[%clk 0:01:54]} 15. h5 {[%clk 0:02:22]}  Qe8 {[%clk 0:01:48]} 16. h6 {[%clk 0:02:10]}  Nf5 {[%clk 0:01:31]} 17. hxg7 {[%clk 0:02:07]}  Rf7 {[%clk 0:01:18]} 18. Bg5 {[%clk 0:01:56]}  Nxg7 {[%clk 0:01:08]} 19. Bf6 {[%clk 0:01:55]}  Nh5 {[%clk 0:01:07]} 20. Rxh5 {[%clk 0:01:53]}  Rxf6 {[%clk 0:01:04]} 21. exf6 {[%clk 0:01:52]}  e5 {[%clk 0:01:05]} 22. Rxe5 {[%clk 0:01:44]}  Bxg4 {[%clk 0:01:04]} 23. Rxe8+ {[%clk 0:01:44]}  Rxe8 {[%clk 0:01:04]} 24. f3 {[%clk 0:01:42]}  Be6 {[%clk 0:00:58]} 25. Nf4 {[%clk 0:01:41]}  Kf7 {[%clk 0:00:56]} 26. Rb1 {[%clk 0:01:39]}  b6 {[%clk 0:00:56]} 27. Rb5 {[%clk 0:01:38]}  Rd8 {[%clk 0:00:55]} 28. a4 {[%clk 0:01:38]}  Kxf6 {[%clk 0:00:49]} 29. a5 {[%clk 0:01:38]}  Rd6 {[%clk 0:00:48]} 30. axb6 {[%clk 0:01:36]}  axb6 {[%clk 0:00:47]} 31. Ke3 {[%clk 0:01:35]}  g5 {[%clk 0:00:39]} 32. Nh5+ {[%clk 0:01:34]}  Kg6 {[%clk 0:00:38]} 33. g4 {[%clk 0:01:33]}  Bd7 {[%clk 0:00:34]} 34. Rb1 {[%clk 0:01:32]}  Re6+ {[%clk 0:00:33]} 35. Kf2 {[%clk 0:01:32]}  b5 {[%clk 0:00:31]} 36. Ra1 {[%clk 0:01:27]}  Rd6 {[%clk 0:00:19]} 37. Ra8 {[%clk 0:01:26]}  Be6 {[%clk 0:00:15]} 38. Rb8 {[%clk 0:01:25]}  Bd7 {[%clk 0:00:14]} 39. Rg8+ {[%clk 0:01:24]}  Kh6 {[%clk 0:00:14]} 40. Rf8 {[%clk 0:01:21]}  Kg6 {[%clk 0:00:13]} 41. Kg3 {[%clk 0:01:18]}  Re6 {[%clk 0:00:08]} 42. f4 {[%clk 0:01:16]}  Re3+ {[%clk 0:00:05]} 43. Kf2 {[%clk 0:01:16]}  Rxc3 {[%clk 0:00:03]} 44. Rf6# {[%clk 0:01:15]} 1-0


[Site "https://www.chess.com"]

[Event "Titled Tuesday Blitz August 1 Late 2023"]
[White "Feliz Dotel, Dewar Bienvenido"]
[Black "Moral Garcia, Serafin"]
[WhiteFideId "6402801"]
[BlackFideId "2201925"]
[WhiteElo "2150"]
[BlackElo "2517"]
[Result "0-1"]
[Round "1"]
[TimeControl "180+1"]
[Date "2023.08.01"]
[WhiteClock "0:00:00"]
[BlackClock "0:00:42"]
[Board "171"]

1. d4 {[%clk 0:02:54]}  Nf6 {[%clk 0:02:58]} 2. e3 {[%clk 0:02:54]}  g6 {[%clk 0:02:58]} 3. Nf3 {[%clk 0:02:52]}  Bg7 {[%clk 0:02:57]} 4. Be2 {[%clk 0:02:52]}  O-O {[%clk 0:02:57]} 5. b4 {[%clk 0:02:52]}  a5 {[%clk 0:02:55]} 6. b5 {[%clk 0:02:52]}  c5 {[%clk 0:02:54]} 7. Bb2 {[%clk 0:02:43]}  b6 {[%clk 0:02:50]} 8. O-O {[%clk 0:02:42]}  d6 {[%clk 0:02:49]} 9. a4 {[%clk 0:02:42]}  Bb7 {[%clk 0:02:46]} 10. c4 {[%clk 0:02:41]}  e6 {[%clk 0:02:41]} 11. dxc5 {[%clk 0:02:34]}  dxc5 {[%clk 0:02:40]} 12. Qxd8 {[%clk 0:02:25]}  Rxd8 {[%clk 0:02:40]} 13. Bxf6 {[%clk 0:02:09]}  Bxf6 {[%clk 0:02:39]} 14. Ra2 {[%clk 0:02:09]}  Nd7 {[%clk 0:02:37]} 15. Rd2 {[%clk 0:02:07]}  Ne5 {[%clk 0:02:37]} 16. Nxe5 {[%clk 0:02:04]}  Bxe5 {[%clk 0:02:36]} 17. Bf3 {[%clk 0:02:01]}  Bxf3 {[%clk 0:02:35]} 18. gxf3 {[%clk 0:02:02]}  Kf8 {[%clk 0:02:32]} 19. Rfd1 {[%clk 0:02:02]}  Rxd2 {[%clk 0:02:31]} 20. Rxd2 {[%clk 0:02:00]}  Ke7 {[%clk 0:02:29]} 21. f4 {[%clk 0:02:00]}  Bf6 {[%clk 0:02:29]} 22. Kf1 {[%clk 0:02:00]}  h6 {[%clk 0:02:26]} 23. Ke2 {[%clk 0:02:00]}  g5 {[%clk 0:02:26]} 24. fxg5 {[%clk 0:01:56]}  hxg5 {[%clk 0:02:24]} 25. Kf3 {[%clk 0:01:42]}  Rh8 {[%clk 0:02:24]} 26. Kg2 {[%clk 0:01:42]}  Rh4 {[%clk 0:02:22]} 27. Rc2 {[%clk 0:01:40]}  Rg4+ {[%clk 0:02:14]} 28. Kh1 {[%clk 0:01:31]}  Be5 {[%clk 0:02:11]} 29. h3 {[%clk 0:01:31]}  Rh4 {[%clk 0:02:05]} 30. Kg2 {[%clk 0:01:31]}  f5 {[%clk 0:02:05]} 31. Nd2 {[%clk 0:01:29]}  g4 {[%clk 0:02:01]} 32. hxg4 {[%clk 0:01:27]}  Rxg4+ {[%clk 0:02:01]} 33. Kf1 {[%clk 0:01:25]}  Bf6 {[%clk 0:02:01]} 34. Nf3 {[%clk 0:01:23]}  e5 {[%clk 0:01:59]} 35. Ke2 {[%clk 0:01:22]}  e4 {[%clk 0:01:59]} 36. Ne1 {[%clk 0:01:16]}  Be5 {[%clk 0:01:51]} 37. Rd2 {[%clk 0:01:07]}  Bd6 {[%clk 0:01:51]} 38. Rd5 {[%clk 0:01:07]}  Ke6 {[%clk 0:01:51]} 39. Kf1 {[%clk 0:01:05]}  Rh4 {[%clk 0:01:47]} 40. Kg1 {[%clk 0:01:01]}  f4 {[%clk 0:01:35]} 41. exf4 {[%clk 0:00:57]}  Rxf4 {[%clk 0:01:34]} 42. Ng2 {[%clk 0:00:55]}  Rf3 {[%clk 0:01:30]} 43. Rh5 {[%clk 0:00:35]}  Ra3 {[%clk 0:01:21]} 44. Ne3 {[%clk 0:00:31]}  Rxa4 {[%clk 0:01:20]} 45. Rh6+ {[%clk 0:00:31]}  Kd7 {[%clk 0:01:11]} 46. Rh7+ {[%clk 0:00:29]}  Ke8 {[%clk 0:01:09]} 47. Rh8+ {[%clk 0:00:27]}  Kf7 {[%clk 0:01:08]} 48. Rh7+ {[%clk 0:00:25]}  Kg6 {[%clk 0:01:04]} 49. Rb7 {[%clk 0:00:24]}  Bf4 {[%clk 0:01:02]} 50. Rxb6+ {[%clk 0:00:23]}  Kg5 {[%clk 0:01:02]} 51. Nd5 {[%clk 0:00:10]}  Rxc4 {[%clk 0:00:59]} 52. Ra6 {[%clk 0:00:10]}  a4 {[%clk 0:00:51]} 53. b6 {[%clk 0:00:09]}  Be5 {[%clk 0:00:52]} 54. Ne3 {[%clk 0:00:08]}  Rc1+ {[%clk 0:00:48]} 55. Kg2 {[%clk 0:00:08]}  Rb1 {[%clk 0:00:49]} 56. Ra5 {[%clk 0:00:07]}  Bd4 {[%clk 0:00:49]} 57. Ra6 {[%clk 0:00:05]}  Kf4 {[%clk 0:00:47]} 58. Nd5+ {[%clk 0:00:05]}  Ke5 {[%clk 0:00:47]} 59. Ne3 {[%clk 0:00:05]}  a3 {[%clk 0:00:47]} 60. b7 {[%clk 0:00:04]}  Rxb7 {[%clk 0:00:47]} 61. Rxa3 {[%clk 0:00:05]}  Rc7 {[%clk 0:00:44]} 62. Ra2 {[%clk 0:00:04]}  c4 {[%clk 0:00:42]} 63. Rc2 {[%clk 0:00:03]}  c3 {[%clk 0:00:42]} 64. Ng4+ {[%clk 0:00:03]}  Kf4 {[%clk 0:00:41]} 65. Ne3 {[%clk 0:00:03]}  Bxe3 {[%clk 0:00:41]} 66. fxe3+ {[%clk 0:00:02]}  Kxe3 {[%clk 0:00:42]} 67. Kf1 {[%clk 0:00:03]}  Kd3 {[%clk 0:00:42]} 68. Rc1 {[%clk 0:00:04]}  Kd2 {[%clk 0:00:43]} 69. Ra1 {[%clk 0:00:03]}  c2 {[%clk 0:00:43]} 70. Ra2 {[%clk 0:00:03]}  e3 {[%clk 0:00:42]} 71. Rb2 {[%clk 0:00:01]}  e2+ {[%clk 0:00:42]} 72. Kf2 {[%clk 0:00:00]}  e1=Q+ {[%clk 0:00:42]} 0-1


[Site "https://www.chess.com"]

[Event "Titled Tuesday Blitz August 1 Late 2023"]
[White "Petesch, Gabriel"]
[Black "Vila Dupla, Aurelio"]
[WhiteFideId "2032465"]
[BlackFideId "2203383"]
[WhiteElo "2516"]
[BlackElo "2150"]
[Result "1-0"]
[Round "1"]
[TimeControl "180+1"]
[Date "2023.08.01"]
[WhiteClock "0:00:31"]
[BlackClock "0:00:21"]
[Board "172"]

1. e4 {[%clk 0:02:48]}  c5 {[%clk 0:02:59]} 2. Nf3 {[%clk 0:02:32]}  d6 {[%clk 0:02:58]} 3. Nc3 {[%clk 0:02:31]}  Nc6 {[%clk 0:02:57]} 4. Bc4 {[%clk 0:02:21]}  g6 {[%clk 0:02:49]} 5. d4 {[%clk 0:02:17]}  cxd4 {[%clk 0:02:48]} 6. Nxd4 {[%clk 0:02:14]}  Bg7 {[%clk 0:02:48]} 7. Be3 {[%clk 0:02:11]}  Nf6 {[%clk 0:02:41]} 8. O-O {[%clk 0:02:10]}  O-O {[%clk 0:02:34]} 9. f3 {[%clk 0:02:07]}  Bd7 {[%clk 0:02:29]} 10. Qe2 {[%clk 0:02:04]}  a6 {[%clk 0:02:27]} 11. Rad1 {[%clk 0:02:00]}  Ne5 {[%clk 0:02:22]} 12. Bb3 {[%clk 0:01:59]}  Rc8 {[%clk 0:02:17]} 13. Nd5 {[%clk 0:01:46]}  b5 {[%clk 0:02:07]} 14. Bc1 {[%clk 0:01:38]}  Nc4 {[%clk 0:01:47]} 15. Rfe1 {[%clk 0:01:24]}  e6 {[%clk 0:01:18]} 16. Nxf6+ {[%clk 0:01:12]}  Qxf6 {[%clk 0:01:19]} 17. c3 {[%clk 0:01:09]}  Rfd8 {[%clk 0:01:10]} 18. Nc2 {[%clk 0:01:05]}  Be8 {[%clk 0:01:04]} 19. Ne3 {[%clk 0:01:02]}  Nxe3 {[%clk 0:00:58]} 20. Bxe3 {[%clk 0:01:01]}  Qe7 {[%clk 0:00:59]} 21. Bb6 {[%clk 0:01:00]}  Rd7 {[%clk 0:00:56]} 22. Bd4 {[%clk 0:01:00]}  Bxd4+ {[%clk 0:00:52]} 23. Rxd4 {[%clk 0:01:01]}  Rcd8 {[%clk 0:00:46]} 24. Red1 {[%clk 0:01:01]}  Rc7 {[%clk 0:00:41]} 25. R4d2 {[%clk 0:01:02]}  Rc6 {[%clk 0:00:40]} 26. Qe3 {[%clk 0:01:02]}  Rdc8 {[%clk 0:00:39]} 27. Kf2 {[%clk 0:00:56]}  R8c7 {[%clk 0:00:40]} 28. Kg1 {[%clk 0:00:56]}  Qf8 {[%clk 0:00:40]} 29. Qd4 {[%clk 0:00:54]}  Qe7 {[%clk 0:00:39]} 30. a3 {[%clk 0:00:54]}  Qg5 {[%clk 0:00:38]} 31. Qf2 {[%clk 0:00:53]}  Qe7 {[%clk 0:00:38]} 32. Qg3 {[%clk 0:00:52]}  e5 {[%clk 0:00:33]} 33. Bd5 {[%clk 0:00:49]}  Rc5 {[%clk 0:00:32]} 34. h4 {[%clk 0:00:48]}  Bd7 {[%clk 0:00:32]} 35. Bb3 {[%clk 0:00:47]}  R5c6 {[%clk 0:00:32]} 36. Bd5 {[%clk 0:00:45]}  Rc5 {[%clk 0:00:32]} 37. h5 {[%clk 0:00:46]}  Be6 {[%clk 0:00:32]} 38. Bxe6 {[%clk 0:00:46]}  Qxe6 {[%clk 0:00:31]} 39. Rxd6 {[%clk 0:00:46]}  Qf6 {[%clk 0:00:26]} 40. h6 {[%clk 0:00:40]}  Rc8 {[%clk 0:00:21]} 41. Rxf6 {[%clk 0:00:31]} 1-0


[Site "https://www.chess.com"]

[Event "Titled Tuesday Blitz August 1 Late 2023"]
[White "Aung Thant Zin"]
[Black "Vovk, Orest"]
[WhiteFideId "13000063"]
[BlackFideId "14113490"]
[WhiteElo "2149"]
[BlackElo "2515"]
[Result "0-1"]
[Round "1"]
[TimeControl "180+1"]
[Date "2023.08.01"]
[WhiteClock "0:00:00"]
[BlackClock "0:00:03"]
[Board "173"]

1. e4 {[%clk 0:02:56]}  g5 {[%clk 0:02:59]} 2. d4 {[%clk 0:02:56]}  g4 {[%clk 0:02:59]} 3. Nc3 {[%clk 0:02:55]}  Bg7 {[%clk 0:02:56]} 4. Be3 {[%clk 0:02:53]}  d6 {[%clk 0:02:54]} 5. h3 {[%clk 0:02:51]}  h5 {[%clk 0:02:54]} 6. hxg4 {[%clk 0:02:50]}  hxg4 {[%clk 0:02:55]} 7. Rxh8 {[%clk 0:02:45]}  Bxh8 {[%clk 0:02:56]} 8. Be2 {[%clk 0:02:45]}  Nf6 {[%clk 0:02:53]} 9. Bg5 {[%clk 0:02:34]}  c6 {[%clk 0:02:49]} 10. Bxf6 {[%clk 0:02:33]}  Bxf6 {[%clk 0:02:48]} 11. Bxg4 {[%clk 0:02:29]}  Bxd4 {[%clk 0:02:45]} 12. Qxd4 {[%clk 0:02:17]}  Bxg4 {[%clk 0:02:45]} 13. f3 {[%clk 0:02:16]}  Be6 {[%clk 0:02:44]} 14. O-O-O {[%clk 0:02:16]}  Qa5 {[%clk 0:02:36]} 15. f4 {[%clk 0:02:06]}  Bxa2 {[%clk 0:02:19]} 16. b3 {[%clk 0:02:01]}  Qa3+ {[%clk 0:02:12]} 17. Kd2 {[%clk 0:02:00]}  Bxb3 {[%clk 0:02:09]} 18. cxb3 {[%clk 0:01:58]}  Qb2+ {[%clk 0:02:08]} 19. Ke3 {[%clk 0:01:52]}  Qxg2 {[%clk 0:02:07]} 20. Nf3 {[%clk 0:01:49]}  Qc2 {[%clk 0:01:42]} 21. Rg1 {[%clk 0:01:35]}  f6 {[%clk 0:01:16]} 22. Rg8+ {[%clk 0:01:19]}  Kd7 {[%clk 0:01:16]} 23. Qb4 {[%clk 0:01:05]}  b6 {[%clk 0:01:05]} 24. Qc4 {[%clk 0:00:56]}  b5 {[%clk 0:00:57]} 25. Qd3 {[%clk 0:00:48]}  Qxb3 {[%clk 0:00:45]} 26. Rh8 {[%clk 0:00:47]}  b4 {[%clk 0:00:32]} 27. Ne2 {[%clk 0:00:46]}  Qxd3+ {[%clk 0:00:30]} 28. Kxd3 {[%clk 0:00:46]}  a5 {[%clk 0:00:29]} 29. Kc4 {[%clk 0:00:41]}  a4 {[%clk 0:00:25]} 30. Nfd4 {[%clk 0:00:39]}  a3 {[%clk 0:00:22]} 31. Nc1 {[%clk 0:00:37]}  c5 {[%clk 0:00:18]} 32. Ndb3 {[%clk 0:00:33]}  Kc6 {[%clk 0:00:13]} 33. f5 {[%clk 0:00:31]}  Nd7 {[%clk 0:00:10]} 34. Rxa8 {[%clk 0:00:29]}  Nb6+ {[%clk 0:00:10]} 35. Kd3 {[%clk 0:00:27]}  c4+ {[%clk 0:00:07]} 36. Kc2 {[%clk 0:00:25]}  cxb3+ {[%clk 0:00:08]} 37. Kxb3 {[%clk 0:00:25]}  Nxa8 {[%clk 0:00:09]} 38. Kxb4 {[%clk 0:00:26]}  d5 {[%clk 0:00:08]} 39. exd5+ {[%clk 0:00:22]}  Kxd5 {[%clk 0:00:09]} 40. Kxa3 {[%clk 0:00:22]}  Ke4 {[%clk 0:00:10]} 41. Kb4 {[%clk 0:00:22]}  Kxf5 {[%clk 0:00:10]} 42. Kc5 {[%clk 0:00:22]}  Nc7 {[%clk 0:00:10]} 43. Kc6 {[%clk 0:00:22]}  Na6 {[%clk 0:00:10]} 44. Kb5 {[%clk 0:00:20]}  Nb8 {[%clk 0:00:10]} 45. Kc5 {[%clk 0:00:16]}  e5 {[%clk 0:00:10]} 46. Nd3 {[%clk 0:00:15]}  e4 {[%clk 0:00:10]} 47. Ne1 {[%clk 0:00:15]}  Kf4 {[%clk 0:00:09]} 48. Kd4 {[%clk 0:00:15]}  f5 {[%clk 0:00:09]} 49. Ng2+ {[%clk 0:00:15]}  Kf3 {[%clk 0:00:08]} 50. Ne3 {[%clk 0:00:15]}  f4 {[%clk 0:00:07]} 51. Nc2 {[%clk 0:00:15]}  e3 {[%clk 0:00:07]} 52. Ne1+ {[%clk 0:00:14]}  Ke2 {[%clk 0:00:06]} 53. Ng2 {[%clk 0:00:14]}  Kf3 {[%clk 0:00:05]} 54. Ne1+ {[%clk 0:00:14]}  Kg4 {[%clk 0:00:05]} 55. Ke4 {[%clk 0:00:13]}  Nc6 {[%clk 0:00:05]} 56. Nd3 {[%clk 0:00:13]}  e2 {[%clk 0:00:04]} 57. Ne1 {[%clk 0:00:08]}  Nb4 {[%clk 0:00:03]} 58. Nf3 {[%clk 0:00:06]}  Kg3 {[%clk 0:00:02]} 59. Ne1 {[%clk 0:00:03]}  Kf2 {[%clk 0:00:03]} 60. Nf3 {[%clk 0:00:00]}  Kg3 {[%clk 0:00:03]} 0-1


[Site "https://www.chess.com"]

[Event "Titled Tuesday Blitz August 1 Late 2023"]
[White "Kanakaris, Georgios"]
[Black "ayme97"]
[WhiteFideId "4209460"]
[WhiteElo "2515"]
[BlackElo "2146"]
[Result "1-0"]
[Round "1"]
[TimeControl "180+1"]
[Date "2023.08.01"]
[WhiteClock "0:00:59"]
[BlackClock "0:00:08"]
[Board "174"]

1. d4 {[%clk 0:02:59]}  Nf6 {[%clk 0:02:59]} 2. Nf3 {[%clk 0:03:00]}  g6 {[%clk 0:02:58]} 3. g3 {[%clk 0:03:00]}  Bg7 {[%clk 0:02:59]} 4. Bg2 {[%clk 0:03:00]}  O-O {[%clk 0:03:00]} 5. O-O {[%clk 0:03:01]}  d6 {[%clk 0:02:59]} 6. b3 {[%clk 0:03:02]}  c5 {[%clk 0:02:56]} 7. Bb2 {[%clk 0:03:01]}  cxd4 {[%clk 0:02:56]} 8. Nxd4 {[%clk 0:03:02]}  Qa5 {[%clk 0:02:48]} 9. c4 {[%clk 0:02:58]}  Qh5 {[%clk 0:02:46]} 10. e3 {[%clk 0:02:51]}  Bg4 {[%clk 0:02:44]} 11. f3 {[%clk 0:02:50]}  Bd7 {[%clk 0:02:42]} 12. Nc3 {[%clk 0:02:40]}  Nc6 {[%clk 0:02:41]} 13. Nxc6 {[%clk 0:02:28]}  Bxc6 {[%clk 0:02:34]} 14. Qe2 {[%clk 0:02:27]}  a6 {[%clk 0:02:25]} 15. a4 {[%clk 0:02:16]}  Rac8 {[%clk 0:02:21]} 16. Rac1 {[%clk 0:02:15]}  h6 {[%clk 0:02:10]} 17. Rfd1 {[%clk 0:02:02]}  Rfd8 {[%clk 0:02:00]} 18. e4 {[%clk 0:01:59]}  g5 {[%clk 0:01:36]} 19. Nd5 {[%clk 0:01:57]}  Bxd5 {[%clk 0:01:30]} 20. cxd5 {[%clk 0:01:56]}  g4 {[%clk 0:01:24]} 21. f4 {[%clk 0:01:50]}  Nd7 {[%clk 0:01:19]} 22. Bxg7 {[%clk 0:01:40]}  Kxg7 {[%clk 0:01:19]} 23. Qe3 {[%clk 0:01:36]}  Nc5 {[%clk 0:01:10]} 24. a5 {[%clk 0:01:34]}  Qg6 {[%clk 0:01:06]} 25. b4 {[%clk 0:01:32]}  Na4 {[%clk 0:00:54]} 26. Qa3 {[%clk 0:01:15]}  b5 {[%clk 0:00:51]} 27. axb6 {[%clk 0:01:15]}  Nxb6 {[%clk 0:00:48]} 28. Qxa6 {[%clk 0:01:12]}  Rxc1 {[%clk 0:00:31]} 29. Rxc1 {[%clk 0:01:12]}  Nd7 {[%clk 0:00:32]} 30. Qa5 {[%clk 0:01:05]}  Rb8 {[%clk 0:00:15]} 31. Qc7 {[%clk 0:01:03]}  Nf6 {[%clk 0:00:13]} 32. Qxb8 {[%clk 0:01:03]}  Nxe4 {[%clk 0:00:11]} 33. Qa7 {[%clk 0:01:00]}  Nd2 {[%clk 0:00:08]} 34. Qd4+ {[%clk 0:00:59]} 1-0


[Site "https://www.chess.com"]